Workbook

Sheet Resumen pronósticos
A1: CALCULADORA PRONÓSTICOS
A2: -- RESUMEN DE MODELOS | E2: ERROR | F2: Periodo (t) | G2: Promedio móvil simple | H2: Promedio movil ponderado | I2: Suavización exponencial simple | J2: Suavización exponencial doble (Holt) | K2: Método de Winter
A3: Datos previos | E3: MAD: | F3: - | G3: ='Método Promedio móvil simple'!L10 -> 188.5555556 | H3: ='Método Promedio móvil ponderado'!L10 -> 134.9333333 | I3: ='Método suavizado exponencial'!L10 -> 134.9411765 | J3: ='Método de Holt'!L10 -> 154.1126145
A4: Cantidad de periodos: | B4: =COUNTA(C9:C1048576) -> 18 | E4: MSD: | F4: - | G4: ='Método Promedio móvil simple'!L11 -> 49973.93333 | H4: ='Método Promedio móvil ponderado'!L11 -> 22644.66667 | I4: ='Método suavizado exponencial'!L11 -> 22362.94118 | J4: ='Método de Holt'!L11 -> 38740.0418
A5: *Promedio móvil, n= | B5: 3 | E5: MAPE: | F5: - | G5: ='Método Promedio móvil simple'!L12 -> 0.1697889384 | H5: ='Método Promedio móvil ponderado'!L12 -> 0.1223060633 | I5: ='Método suavizado exponencial'!L12 -> 0.1232853309 | J5: ='Método de Holt'!L12 -> 0.1507959263
A6: Considere eliminar los valores de datos que estén asociados con eventos anormales y únicos (causas especiales).
E7: PRONÓSTICO: | F7: =B4+1 -> 19 | G7: 1177.333333 | H7: 1098 | I7: 1098 | J7: 1127.918773
A8: Periodo (t) | B8: Nombre periodo | C8: Demanda (Dt)
A9: 1 | B9: - | C9: 1250 | G9: FALSE
A10: 2 | B10: - | C10: 1160 | G10: TRUE | H10: TRUE | I10: TRUE | J10: TRUE
A11: 3 | B11: - | C11: 980
A12: 4 | B12: - | C12: 850
A13: 5 | B13: - | C13: 930
A14: 6 | B14: - | C14: 1215
A15: 7 | B15: - | C15: 1350
A16: 8 | B16: - | C16: 1486
A17: 9 | B17: - | C17: 1321
A18: 10 | B18: - | C18: 1246
A19: 11 | B19: - | C19: 1132
A20: 12 | B20: - | C20: 854
A21: 13 | B21: - | C21: 950
A22: 14 | B22: - | C22: 1010
A23: 15 | B23: - | C23: 1167
A24: 16 | B24: - | C24: 1289
A25: 17 | B25: - | C25: 1145
A26: 18 | B26: - | C26: 1098
E28: Recomendación
E29: Pronósticar un máximo de 6 periodos.
E31: Error
E32: Los valores de error también se denominan residuos. Los valores de error son las diferencias entre los valores observados y los pronosticados.
E34: MAPE:
E35: El error porcentual absoluto medio (MAPE) expresa la exactitud como un porcentaje del error.
E36: Por ejemplo, si el MAPE es 5, en promedio, el pronóstico está errado en un 5%.
E37: Valores más pequeños indican un mejor ajuste.
E38: MAPE es generalmente la medición más recomendable.
E40: Debería examinar el ajuste del modelo para garantizar que el modelo sigue los datos de manera estrecha, particularmente al final de las series.
E42: MAD
E43: La desviación absoluta de la media (MAD) expresa exactitud en las mismas unidades que los datos, lo que ayuda a conceptualizar la cantidad del error.
E45: MSD
E46: La desviación cuadrática media (MSD) mide la exactitud de los valores ajustados de las series de tiempo.

Sheet Método Promedio móvil simple
A1: CALCULADORA PRONÓSTICOS | E1: Referencia: | F1: https://www.youtube.com/watch?v=eq-o_-wtXd0&list=PLRuoXZJSuGuVDm_9BwF7KKL_y2yvqPRS9
A2: MODELO PROMEDIO MÓVIL SIMPLE
A4: Periodo (t) | B4: Ventas (Dt) | C4: Pronóstico (FITt) | D4: Error | E4: Error ABS | F4: Error^2 | G4: MAPE | K4: Cantidad de datos anteriores para pronosticar
A5: 1 | B5: 1250 | K5: n= | L5: ='Resumen pronósticos'!B5 -> 3
A6: 2 | B6: 1160
A7: 3 | B7: 980
A8: 4 | B8: 850 | C8: =(B5+B6+B7)/$L$5 -> 1130 | D8: =B8-C8 -> -280 | E8: =ABS(D8) -> 280 | F8: =D8^2 -> 78400 | G8: =ABS(D8/B8)*100% -> 0.3294117647 | K8: ERROR
A9: 5 | B9: 930 | C9: =(B6+B7+B8)/$L$5 -> 996.6666667 | D9: =B9-C9 -> -66.66666667 | E9: =ABS(D9) -> 66.66666667 | F9: =D9^2 -> 4444.444444 | G9: =ABS(D9/B9)*100% -> 0.07168458781 | K9: Media error: | L9: =AVERAGE(D8:D22) -> 8.066666667 | M9: Es la media del error (pronóstico - demanda)
A10: 6 | B10: 1215 | C10: 920 | D10: 295 | E10: 295 | F10: 87025 | G10: 0.2427983539 | K10: MAD: | L10: =AVERAGE(E8:E22) -> 188.5555556 | M10: Es la media absoluta del error (pronóstico - demanda)
A11: 7 | B11: 1350 | C11: 998.3333333 | D11: 351.6666667 | E11: 351.6666667 | F11: 123669.4444 | G11: 0.2604938272 | K11: MSD: | L11: =AVERAGE(F8:F22) -> 49973.93333 | M11: Es la media cuadrática del error.
A12: 8 | B12: 1486 | C12: 1165 | D12: 321 | E12: 321 | F12: 103041 | G12: 0.2160161507 | K12: MAPE: | L12: =AVERAGE(G8:G22) -> 0.1697889384
A13: 9 | B13: 1321 | C13: 1350.333333 | D13: -29.33333333 | E13: 29.33333333 | F13: 860.4444444 | G13: 0.02220539995
A14: 10 | B14: 1246 | C14: 1385.666667 | D14: -139.6666667 | E14: 139.6666667 | F14: 19506.77778 | G14: 0.1120920278
A15: 11 | B15: 1132 | C15: 1351 | D15: -219 | E15: 219 | F15: 47961 | G15: 0.1934628975
A16: 12 | B16: 854 | C16: 1233 | D16: -379 | E16: 379 | F16: 143641 | G16: 0.443793911
A17: 13 | B17: 950 | C17: 1077.333333 | D17: -127.3333333 | E17: 127.3333333 | F17: 16213.77778 | G17: 0.1340350877
A18: 14 | B18: 1010 | C18: 978.6666667 | D18: 31.33333333 | E18: 31.33333333 | F18: 981.7777778 | G18: 0.03102310231
A19: 15 | B19: 1167 | C19: 938 | D19: 229 | E19: 229 | F19: 52441 | G19: 0.1962296487
A20: 16 | B20: 1289 | C20: 1042.333333 | D20: 246.6666667 | E20: 246.6666667 | F20: 60844.44444 | G20: 0.1913628136
A21: 17 | B21: 1145 | C21: 1155.333333 | D21: -10.33333333 | E21: 10.33333333 | F21: 106.7777778 | G21: 0.009024745269
A22: 18 | B22: 1098 | C22: 1200.333333 | D22: -102.3333333 | E22: 102.3333333 | F22: 10472.11111 | G22: 0.09319975713
A23: 19 | C23: 1177.333333
K34: Sobre este modelo:
K35: n es el número de periodos que se juntarán en el promedio
K36: Error: ventas - pronóstico del periodo
K38: para encontrar un mejor pronóstico se pueden ir probando los valores de "n"

Sheet Método Promedio móvil ponderado
A1: CALCULADORA PRONÓSTICOS | E1: Referencia: | F1: https://www.youtube.com/watch?v=eSV1WMQc4Hk&list=PLRuoXZJSuGuVDm_9BwF7KKL_y2yvqPRS9&index=2
A2: MODELO PROMEDIO MÓVIL PONDERADO
A4: Periodo (t) | B4: Ventas (Dt) | C4: Pronóstico (FITt) | D4: Error | E4: Error ABS | F4: Error^2 | G4: MAPE | K4: Cantidad de datos anteriores para pronosticar
A5: 1 | B5: 1250 | K5: n= | L5: 3 | O5: t | P5: w
A6: 2 | B6: 1160 | O6: 1 | P6: 0
A7: 3 | B7: 980 | O7: 2 | P7: 8.926193118e-15
A8: 4 | B8: 850 | C8: =(B5*$P$6)+(B6*$P$7)+(B7*$P$8) -> 980 | D8: =B8-C8 -> -130 | E8: =ABS(D8) -> 130 | F8: =D8^2 -> 16900 | G8: =ABS(D8/B8)*100% -> 0.1529411765 | K8: ERROR | O8: 3 | P8: 1
A9: 5 | B9: 930 | C9: =(B6*$P$6)+(B7*$P$7)+(B8*$P$8) -> 850 | D9: =B9-C9 -> 80 | E9: =ABS(D9) -> 80 | F9: =D9^2 -> 6400 | G9: =ABS(D9/B9)*100% -> 0.08602150538 | K9: Media error: | L9: =AVERAGE(D8:D22) -> 7.866666667 | M9: Es la media del error (pronóstico - demanda) | O9: suma | P9: =SUM(P6:P8) -> 1
A10: 6 | B10: 1215 | C10: 930 | D10: 285 | E10: 285 | F10: 81225 | G10: 0.2345679012 | K10: MAD: | L10: =AVERAGE(E8:E22) -> 134.9333333 | M10: Es la media absoluta del error (pronóstico - demanda)
A11: 7 | B11: 1350 | C11: 1215 | D11: 135 | E11: 135 | F11: 18225 | G11: 0.1 | K11: MSD: | L11: =AVERAGE(F8:F22) -> 22644.66667 | M11: Es la media cuadrática del error.
A12: 8 | B12: 1486 | C12: 1350 | D12: 136 | E12: 136 | F12: 18496 | G12: 0.09152086137 | K12: MAPE: | L12: =AVERAGE(G8:G22) -> 0.1223060633
A13: 9 | B13: 1321 | C13: 1486 | D13: -165 | E13: 165 | F13: 27225 | G13: 0.1249053747
A14: 10 | B14: 1246 | C14: 1321 | D14: -75 | E14: 75 | F14: 5625 | G14: 0.06019261637
A15: 11 | B15: 1132 | C15: 1246 | D15: -114 | E15: 114 | F15: 12996 | G15: 0.1007067138
A16: 12 | B16: 854 | C16: 1132 | D16: -278 | E16: 278 | F16: 77284 | G16: 0.3255269321
A17: 13 | B17: 950 | C17: 854 | D17: 96 | E17: 96 | F17: 9216 | G17: 0.1010526316
A18: 14 | B18: 1010 | C18: 950 | D18: 60 | E18: 60 | F18: 3600 | G18: 0.05940594059
A19: 15 | B19: 1167 | C19: 1010 | D19: 157 | E19: 157 | F19: 24649 | G19: 0.1345329906
A20: 16 | B20: 1289 | C20: 1167 | D20: 122 | E20: 122 | F20: 14884 | G20: 0.09464701319
A21: 17 | B21: 1145 | C21: 1289 | D21: -144 | E21: 144 | F21: 20736 | G21: 0.1257641921
A22: 18 | B22: 1098 | C22: 1145 | D22: -47 | E22: 47 | F22: 2209 | G22: 0.04280510018
A23: 19 | C23: 1098
K34: Sobre este modelo:
K35: n es el número de periodos que se juntarán en el promedio
K36: Error: ventas - pronóstico del periodo
K38: para encontrar un mejor pronóstico se usa SOLVER en la asignación de pesos de los periodos.
K39: Su suma tiene que ser = 1, además que tienen que ser entre 0 y 1.
K40: La idea es que se tenga el mínimo error absoluto posible.

Sheet Método suavizado exponencial
A1: CALCULADORA PRONÓSTICOS | E1: Referencia: | F1: https://www.youtube.com/watch?v=_yO9DPShDlI
A2: MODELO SUAVIZACIÓN EXPONENCIAL SIMPLE
A4: Periodo (t) | B4: Ventas (Dt) | C4: Pronóstico (FITt) | D4: Error | E4: Error ABS | F4: Error^2 | G4: MAPE
A5: 1 | B5: 1250 | C5: =(B5) -> 1250 | K5: Alpha: | L5: 1
A6: 2 | B6: 1160 | C6: =C5+$L$5*(B5-C5) -> 1250 | D6: =B6-C6 -> -90 | E6: =ABS(D6) -> 90 | F6: =D6^2 -> 8100 | G6: =ABS(D6/B6)*100% -> 0.0775862069
A7: 3 | B7: 980 | C7: =C6+$L$5*(B6-C6) -> 1160 | D7: =B7-C7 -> -180 | E7: =ABS(D7) -> 180 | F7: =D7^2 -> 32400 | G7: =ABS(D7/B7)*100% -> 0.1836734694
A8: 4 | B8: 850 | C8: 980 | D8: -130 | E8: 130 | F8: 16900 | G8: 0.1529411765 | K8: ERROR
A9: 5 | B9: 930 | C9: 850 | D9: 80 | E9: 80 | F9: 6400 | G9: 0.08602150538 | K9: Media error: | L9: =AVERAGE(D6:D22) -> -8.941176471 | M9: Es la media del error (pronóstico - demanda)
A10: 6 | B10: 1215 | C10: 930 | D10: 285 | E10: 285 | F10: 81225 | G10: 0.2345679012 | K10: MAD: | L10: =AVERAGE(E6:E22) -> 134.9411765 | M10: Es la media absoluta del error (pronóstico - demanda)
A11: 7 | B11: 1350 | C11: 1215 | D11: 135 | E11: 135 | F11: 18225 | G11: 0.1 | K11: MSD: | L11: =AVERAGE(F6:F22) -> 22362.94118 | M11: Es la media cuadrática del error.
A12: 8 | B12: 1486 | C12: 1350 | D12: 136 | E12: 136 | F12: 18496 | G12: 0.09152086137 | K12: MAPE: | L12: =AVERAGE(G6:G22) -> 0.1232853309
A13: 9 | B13: 1321 | C13: 1486 | D13: -165 | E13: 165 | F13: 27225 | G13: 0.1249053747
A14: 10 | B14: 1246 | C14: 1321 | D14: -75 | E14: 75 | F14: 5625 | G14: 0.06019261637
A15: 11 | B15: 1132 | C15: 1246 | D15: -114 | E15: 114 | F15: 12996 | G15: 0.1007067138
A16: 12 | B16: 854 | C16: 1132 | D16: -278 | E16: 278 | F16: 77284 | G16: 0.3255269321
A17: 13 | B17: 950 | C17: 854 | D17: 96 | E17: 96 | F17: 9216 | G17: 0.1010526316
A18: 14 | B18: 1010 | C18: 950 | D18: 60 | E18: 60 | F18: 3600 | G18: 0.05940594059
A19: 15 | B19: 1167 | C19: 1010 | D19: 157 | E19: 157 | F19: 24649 | G19: 0.1345329906
A20: 16 | B20: 1289 | C20: 1167 | D20: 122 | E20: 122 | F20: 14884 | G20: 0.09464701319
A21: 17 | B21: 1145 | C21: 1289 | D21: -144 | E21: 144 | F21: 20736 | G21: 0.1257641921
A22: 18 | B22: 1098 | C22: 1145 | D22: -47 | E22: 47 | F22: 2209 | G22: 0.04280510018
A23: 19 | C23: 1098
K34: Sobre este modelo:
K35: Considera el periodo anterior, no hace falta muchos datos históricos
K36: para datos que no presenten tendencia. Si no es mejor usar el
K37: método de HOLT.
K39: Lo ideal es usar SOLVER para encontrar alpha (de 0 a 1)
K40: Si es 0 es porque hay volatilidad en los datos, 1 es estabilidad
K41: El objetivo es encontrar el mínimo valor de error absoluto.
K43: Error: ventas - pronóstico del periodo

Sheet Método de Holt
A1: CALCULADORA PRONÓSTICOS | E1: Referencia: | F1: https://www.youtube.com/watch?v=cCXTJeTZZww&list=PL8RCfdSX2W08raXUojgXCg4nq7GtzLkaB
A2: MÉTODO HOLT
A4: Periodo (t) | B4: Ventas (Dt) | C4: Valor atenuado (At) | D4: Tendencia (Tt) | E4: Pronóstico (FITt) | F4: Error | G4: Error ABS | H4: Error^2 | I4: MAPE
A5: 1 | B5: 1250 | C5: =(B5) -> 1250 | D5: 0 | K5: Alpha: | L5: 0.01822650763
A6: 2 | B6: 1160 | C6: =$L$5*B6+(1-$L$5)*(C5+D5) -> 1248.359614 | D6: =$L$6*(C6-C5)+(1-$L$6)*D5 -> -0.6398697605 | E6: =C5+D5 -> 1250 | F6: =B6-E6 -> -90 | G6: =ABS(F6) -> 90 | H6: =F6^2 -> 8100 | I6: =ABS(F6/B6)*100% -> 0.0775862069 | K6: Beta: | L6: 0.3900727529
A7: 3 | B7: 980 | C7: =$L$5*B7+(1-$L$5)*(C6+D6) -> 1242.840149 | D7: =$L$6*(C7-C6)+(1-$L$6)*D6 -> -2.543267192 | E7: =C6+D6 -> 1247.719745 | F7: =B7-E7 -> -267.7197446 | G7: =ABS(F7) -> 267.7197446 | H7: =F7^2 -> 71673.86162 | I7: =ABS(F7/B7)*100% -> 0.2731834128
A8: 4 | B8: 850 | C8: 1233.183132 | D8: -5.318146881 | E8: 1240.296881 | F8: -390.2968814 | G8: 390.2968814 | H8: 152331.6556 | I8: 0.4591728016 | K8: ERROR
A9: 5 | B9: 930 | C9: 1222.435947 | D9: -7.435866847 | E9: 1227.864985 | F9: -297.8649854 | G9: 297.8649854 | H9: 88723.54954 | I9: 0.3202849306 | K9: Media error: | L9: =AVERAGE(F6:F22) -> -68.09366723 | M9: Es la media del error (pronóstico - demanda)
A10: 6 | B10: 1215 | C10: 1215.000079 | D10: -7.435867416 | E10: 1215.00008 | F10: -8.0154128e-05 | G10: 8.0154128e-05 | H10: 6.424684235e-09 | I10: 6.597047572e-08 | K10: MAD: | L10: =AVERAGE(G6:G22) -> 154.1126145 | M10: Es la media absoluta del error (pronóstico - demanda)
A11: 7 | B11: 1350 | C11: 1210.160318 | D11: -6.423196816 | E11: 1207.564211 | F11: 142.4357887 | G11: 142.4357887 | H11: 20287.95391 | I11: 0.1055079916 | K11: MSD: | L11: =AVERAGE(H6:H22) -> 38740.0418 | M11: Es la media cuadrática del error.
A12: 8 | B12: 1486 | C12: 1208.881788 | D12: -4.416402588 | E12: 1203.737121 | F12: 282.2628786 | G12: 282.2628786 | H12: 79672.33261 | I12: 0.1899481013 | K12: MAPE: | L12: =AVERAGE(I6:I22) -> 0.1507959263
A13: 9 | B13: 1321 | C13: 1206.589404 | D13: -3.587880633 | E13: 1204.465385 | F13: 116.5346146 | G13: 116.5346146 | H13: 13580.31641 | I13: 0.08821696793
A14: 10 | B14: 1246 | C14: 1203.785236 | D14: -3.282175915 | E14: 1203.001524 | F14: 42.99847622 | G14: 42.99847622 | H14: 1848.868957 | I14: 0.03450921045
A15: 11 | B15: 1132 | C15: 1199.254488 | D15: -3.769209654 | E15: 1200.50306 | F15: -68.50305992 | G15: 68.50305992 | H15: 4692.669218 | I15: 0.0605150706
A16: 12 | B16: 854 | C16: 1189.261195 | D16: -6.197055249 | E16: 1195.485279 | F16: -341.4852787 | G16: 341.4852787 | H16: 116612.1956 | I16: 0.3998656659
A17: 13 | B17: 950 | C17: 1178.816194 | D17: -7.854062972 | E17: 1183.064139 | F17: -233.0641394 | G17: 233.0641394 | H17: 54318.89309 | I17: 0.2453306731
A18: 14 | B18: 1010 | C18: 1168.028354 | D18: -8.998449642 | E18: 1170.962131 | F18: -160.9621311 | G18: 160.9621311 | H18: 25908.80766 | I18: 0.1593684467
A19: 15 | B19: 1167 | C19: 1159.175171 | D19: -8.941784937 | E19: 1159.029904 | F19: 7.970096005 | G19: 7.970096005 | H19: 63.52243032 | I19: 0.006829559558
A20: 16 | B20: 1289 | C20: 1152.762617 | D20: -7.955200937 | E20: 1150.233386 | F20: 138.7666139 | G20: 138.7666139 | H20: 19256.17314 | I20: 0.1076544716
A21: 17 | B21: 1145 | C21: 1144.810926 | D21: -7.953831729 | E21: 1144.807416 | F21: 0.1925841163 | G21: 0.1925841163 | H21: 0.03708864185 | I21: 0.0001681957348
A22: 18 | B22: 1098 | C22: 1136.148865 | D22: -8.230092613 | E22: 1136.857094 | F22: -38.85709429 | G22: 38.85709429 | H22: 1509.873777 | I22: 0.03538897476
A23: 19 | E23: 1127.918773
K33: Sobre este modelo:
K34: Considera el periodo anterior, no hace falta muchos datos históricos
K35: para datos que presentan tendencia.
K36: Utiliza como base el método de suavizado exponencial
K39: Lo ideal es usar SOLVER para encontrar alpha y betha (de 0 a 1)
K40: Si es 0 es porque hay volatilidad en los datos, 1 es estabilidad
K41: El objetivo es encontrar el mínimo valor de error absoluto.
K43: Error: ventas - pronóstico del periodo
